Workbook

Sheet NSU
B1: Iina Lehtinen | E1: 29.11.1996 Kuusankoski
B2: SUPERPESIS | E2: Runkosarja | I2: Kärkilyönnit (KL), pesänvälit | Q2: Runkosarja | U2: Ylempi loppusarja | Z2: Alempi loppusarja | AG2: Arvo-ottelut ja mitalit
B3: Vuosi | C3: Sija | D3: Seura | E3: OTT | F3: KUN | G3: LÖI | H3: TOI | I3: KL | J3: 0 > 1 | K3: 1 > 2 | L3: 2 > 3 | M3: 3 > k | N3: KL-% | P3: LÖI | Q3: TOI | R3: L+T | S3: KL | U3: OTT | V3: KUN | W3: LÖI | X3: TOI | Y3: KL | Z3: OTT | AA3: KUN | AB3: LÖI | AC3: TOI | AD3: KL | AE3: IL | AF3: LL | AG3: Halli | AH3: K | AI3: H | AJ3: P
B4: 2012 | D4: Puhti | F4: suomensarja | O4: 0
B5: 2013 | D5: VuVe 2 | F5: suomensarja | O5: 0
B6: 2014 | D6: VuVe 2 | F6: suomensarja | O6: 0
B7: 2014 | C7: 8. | D7: VuVe | E7: 3 | F7: 0 | G7: 2 | H7: 2 | I7: 12 | J7: 3 | K7: 2 | L7: 5 | M7: 2 | N7: 60.0 % | O7: =PRODUCT(I7/N7) -> 20 | U7: 3 | V7: 0 | W7: 0 | X7: 0 | Y7: 4
B8: 2015 | D8: KPK | F8: ykköspesis
B9: 2016 | C9: 9. | D9: KPK | E9: 22 | F9: 2 | G9: 20 | H9: 12 | I9: 105 | J9: 12 | K9: 16 | L9: 55 | M9: 22 | N9: 56.1 % | O9: 187 | S9: 10. | AE9: 1
B10: 2017 | C10: 10. | D10: KPK | E10: 26 | F10: 0 | G10: 20 | H10: 10 | I10: 108 | J10: 6 | K10: 17 | L10: 65 | M10: 20 | N10: 54.3 % | O10: 199
B11: 2018 | C11: 4. | D11: Virkiä | E11: 25 | F11: 0 | G11: 23 | H11: 8 | I11: 72 | J11: 8 | K11: 11 | L11: 30 | M11: 23 | N11: 45.9 % | O11: 157 | U11: 10 | V11: 2 | W11: 8 | X11: 5 | Y11: 31
B12: 2019 | C12: 3. | D12: Virkiä | E12: 24 | F12: 2 | G12: 35 | H12: 15 | I12: 91 | J12: 10 | K12: 10 | L12: 34 | M12: 37 | N12: 59.9 % | O12: 152 | P12: 10. | U12: 8 | V12: 0 | W12: 4 | X12: 4 | Y12: 33 | AE12: 1 | AJ12: 1
B13: 2020 | C13: 4. | D13: Virkiä | E13: 20 | F13: 0 | G13: 33 | H13: 13 | I13: 92 | J13: 6 | K13: 11 | L13: 42 | M13: 33 | N13: 63.0 % | O13: 146 | U13: 8 | V13: 1 | W13: 6 | X13: 1 | Y13: 23
B14: 2021 | C14: 4. | D14: Virkiä | E14: 24 | F14: 1 | G14: 35 | H14: 19 | I14: 93 | J14: 3 | K14: 14 | L14: 40 | M14: 36 | N14: 68.4 % | O14: 136 | U14: 10 | V14: 0 | W14: 7 | X14: 7 | Y14: 35
B15: 2022 | C15: 3. | D15: Virkiä | E15: 23 | F15: 1 | G15: 24 | H15: 12 | I15: 72 | J15: 5 | K15: 12 | L15: 30 | M15: 25 | N15: 51.4 % | O15: 140 | U15: 11 | V15: 1 | W15: 11 | X15: 5 | Y15: 51 | AJ15: 1
B16: 2023 | C16: 3. | D16: Virkiä | E16: 24 | F16: 4 | G16: 41 | H16: 12 | I16: 106 | J16: 1 | K16: 14 | L16: 46 | M16: 45 | N16: 62.4 % | O16: 170 | P16: 7. | R16: 9. | U16: 10 | V16: 1 | W16: 12 | X16: 5 | Y16: 40 | AE16: 1 | AJ16: 1
B17: 2024 | C17: 2. | D17: Virkiä | E17: 23 | F17: 3 | G17: 36 | H17: 15 | I17: 101 | J17: 2 | K17: 16 | L17: 44 | M17: 39 | N17: 62.0 % | O17: 163 | R17: 7. | U17: 11 | V17: 0 | W17: 9 | X17: 2 | Y17: 35 | AI17: 1
B18: Yhteensä | E18: =SUM(E6:E17) -> 214 | F18: =SUM(F6:F17) -> 13 | G18: 269 | H18: 118 | I18: 852 | J18: 56 | K18: 123 | L18: 391 | M18: 282 | N18: =PRODUCT(I18/O18) -> 58.0 % | O18: =SUM(O6:O17) -> 1470 | T18: =PRODUCT(L18/S18) ->  | U18: =SUM(U6:U17) -> 71 | V18: =SUM(V6:V17) -> 5 | W18: =SUM(W6:W17) -> 57 | X18: =SUM(X6:X17) -> 29 | Y18: =SUM(Y6:Y17) -> 252 | Z18: =SUM(Z6:Z17) -> 0 | AA18: =SUM(AA6:AA17) -> 0 | AB18: =SUM(AB6:AB17) -> 0 | AC18: =SUM(AC6:AC17) -> 0 | AD18: =SUM(AD6:AD17) -> 0 | AE18: =SUM(AE6:AE17) -> 3 | AF18: =SUM(AF6:AF17) -> 0 | AG18: =SUM(AG6:AG17) -> 0 | AH18: =SUM(AH6:AH17) -> 0 | AI18: =SUM(AI6:AI17) -> 1 | AJ18: =SUM(AJ6:AJ17) -> 3
B19: Pesispörssi | D19: =SUM(F18:H18)+((I18-F18-G18)/3)+(E18/3)+(AE18*25)+(AF18*25)+(AG18*10)+(AH18*25)+(AI18*20)+(AJ18*15) -> 801.3
B21: URA SUPERISSA | E21: OTT | F21: KUN | G21: LÖI | H21: TOI | I21: KL | K21: ka/L | L21: ka/T | M21: ka/KL | N21: K - % | P21: ENSIMMÄISET
B22: Runkosarja | E22: =PRODUCT(E18) -> 214 | F22: =PRODUCT(F18) -> 13 | G22: =PRODUCT(G18) -> 269 | H22: =PRODUCT(H18) -> 118 | I22: =PRODUCT(I18) -> 852 | K22: =PRODUCT((F22+G22)/E22) -> 1.32 | L22: =PRODUCT(H22/E22) -> 0.55 | M22: =PRODUCT(I22/E22) -> 3.98 | N22: =PRODUCT(N18) -> 58.0 % | O22: =PRODUCT(O18) -> 1470 | P22: Ottelu | R22: 14.05. 2014 VuVe - Kirittäret 0-2 (2-6, 2-8) | AC22: 1. ottelu | AF22: 17 v 5 kk 16 pv
B23: Ylempi loppusarja | E23: =PRODUCT(U18) -> 71 | F23: =PRODUCT(V18) -> 5 | G23: =PRODUCT(W18) -> 57 | H23: =PRODUCT(X18) -> 29 | I23: =PRODUCT(Y18) -> 252 | K23: =PRODUCT((F23+G23)/E23) -> 0.87 | L23: =PRODUCT(H23/E23) -> 0.41 | M23: =PRODUCT(I23/E23) -> 3.55 | N23: =PRODUCT(I23/O23) -> 54.9 % | O23: 459 | P23: Lyöty | R23: 10.08. 2014 VuVe - Pesäkarhut 2-0 (2-1, 7-5) | AC23: 2. ottelu | AF23: 17 v 8 kk 12 pv
B24: Alempi loppusarja | P24: Tuotu | R24: 10.08. 2014 VuVe - Pesäkarhut 2-0 (2-1, 7-5) | AC24: 2. ottelu | AF24: 17 v 8 kk 12 pv
B25: KAIKKI | E25: =SUM(E22:E24) -> 285 | F25: =SUM(F22:F24) -> 18 | G25: =SUM(G22:G24) -> 326 | H25: =SUM(H22:H24) -> 147 | I25: =SUM(I22:I24) -> 1104 | K25: =PRODUCT((F25+G25)/E25) -> 1.21 | L25: =PRODUCT(H25/E25) -> 0.52 | M25: =PRODUCT(I25/E25) -> 3.87 | N25: =PRODUCT(I25/O25) -> 57.2 % | O25: =SUM(O22:O24) -> 1929 | P25: Kunnari | R25: 12.07. 2016 KPK - ViPa 2-1 (5-6, 7-0, 1-1, 2-1) | AC25: 20. ottelu | AF25: 19 v 7 kk 13 pv
B27: Seurat | D27: Puhti = Kuusankosken Puhti (1910), kasvattajaseura
D28: VuVe = Vuokatin Veto (1946)
D29: KPK = Kajaanin Pallokerho (1933)
D30: Virkiä = Lapuan Virkiä (1909)

Sheet Arvo-ottelut
B1: ITÄ - LÄNSI - KORTTI
B2: Iina Lehtinen | C2: 29.11.1996 Kuusankoski
B3: NAISET | C3: Itä - Länsi, tulos | D3: Joukkue | E3: Seura | G3: V | H3: T | I3: H | J3: Up. | K3: Lj. | L3: Palk. | M3: O | N3: K | O3: L | P3: T | Q3: KL | R3: 1 | S3: 2 | T3: 3 | U3: k | V3: KL-% | W3: Pelinjohtaja | X3: Yleisöä
B4: 02.07. 2016 Kouvola | C4: 0-2 (2-10, 1-7) | D4: Itä | E4: KPK | I4: 1 | J4: 2k | K4: 4 | M4: 1 | Q4: 3/5 | R4: 1/1 | S4: 1/1 | T4: 1/2 | U4: 0/1 | V4: 60.0 % | W4: Saku Komulainen | X4: 3267
B5: 06.07. 2019 Seinäjoki | C5: 0-1 (1-2, 4-4) | D5: Länsi | E5: Virkiä | G5: 1 | J5: 2k | K5: 4 | M5: 1 | Q5: 0/3 | R5: 0/2 | U5: 0/1 | V5: 0.0 % | W5: Tomi Niskanen | X5: 3911
B6: 05.08. 2023 Sotkamo | C6: 0-2 (4-9, 1-5) | D6: Länsi | E6: Virkiä | G6: 1 | K6: jok | M6: 1 | O6: 1 | Q6: 3/3 | T6: 2/2 | U6: 1/1 | V6: 100.0 % | W6: Jarkko Pokela | X6: 2780
B7: Yhteensä | G7: =SUM(G4:G6) -> 2 | I7: 1 | M7: =SUM(M4:M6) -> 3 | Q7: 6/11 | R7: 1/3 | S7: 1/1 | T7: 3/4 | U7: 1/3 | V7: =PRODUCT(6/11) -> 54.5 %
B8: Ikä ensimmäisessä ottelussa | C8: 19 v 7 kk 4 pv
B10: B-TYTÖT | C10: Itä - Länsi, tulos | D10: Joukkue | E10: Seura | G10: V | H10: T | I10: H | J10: Up. | K10: Lj. | L10: Palk. | M10: O | N10: K | O10: L | P10: T | Q10: KL | R10: 1 | S10: 2 | T10: 3 | U10: k | V10: KL-% | W10: Pelinjohtaja | X10: Yleisöä
B11: 19.07. 2014 Seinäjoki | C11: 0-2 (3-11, 2-4) | D11: Itä | E11: VuVe | I11: 1 | J11: L | K11: 5 | M11: 1 | O11: 2 | Q11: 3/8 | R11: 0/1 | S11: 0/1 | T11: 1/3 | U11: 2/3 | V11: 37.5 % | W11: Iivo Parviainen | X11: 1682
